Cogmind - Beta 10.2 @@@ ROGUE MODE // 2020.11.02 @ 21:03:28 // Halloween2020/ForbiddenLore Player: blelm Result: Self-destructed Performance ------------- Evolutions (3) 1500 Regions Visited (10) 2000 Robots Destroyed (244) 1220 Value Destroyed (6991) 6991 Prototype IDs (33) 660 Alien Tech Used (0) 0 Bonus (2310) 2310 TOTAL SCORE: 14681 Bonus ------- High Alert Combat Kills 1310 Entered Garrisons 200 Used RIF Installer 500 Aligned with FarCom 300 Cogmind --------- Core Integrity 637/700 Matter 258/300 Energy 160/160 System Corruption 3% Temperature Cool (8) Movement Treading (190) Ox1 Location -7/Factory Parts ------- > --- POWER (1) -------- Light Nuclear Core > --- PROPULSION (4) --- Armored Treads Armored Treads Armored Treads Armored Treads > --- UTILITY (5) ------ High-capacity Storage Unit High-capacity Storage Unit High-capacity Storage Unit Advanced Targeting Computer Hardened Medium Armor Plating > --- WEAPON (3) ------- Heavy Assault Rifle Heavy Assault Rifle Remote Datajack > --- INVENTORY (28) --- Light Ion Engine Light Treads Light Treads Advanced Treads High-capacity Storage Unit High-capacity Matter Pod (200) Heavy Armor Plating Hacking Suite Relay Coupler [NC] (21) Relay Coupler [NC] (21) Relay Coupler [NC] (25) Relay Coupler [NC] (27) Relay Coupler [Grunt] (26) Relay Coupler [Sentry] (18) Relay Coupler [Sentry] (19) Relay Coupler [Hunter] (12) Advanced Component Analysis Suite Autogun Improved Grenade Launcher Improved Grenade Launcher Longsword +1 Deploy-a-Sentry Peak State ------------ > --- POWER ------------ Makeshift Power Source > --- PROPULSION ------- Light Treads Armored Treads Advanced Treads > --- UTILITY ---------- High-capacity Storage Unit High-capacity Storage Unit Improved Armor Integrity Analyzer Hardened Medium Armor Plating > --- WEAPON ----------- Heavy Particle Gun Heavy Assault Rifle Longsword +1 > --- INVENTORY -------- Makeshift Power Source Light Neutrino Core Light Treads Light Treads Light Treads High-capacity Storage Unit High-capacity Storage Unit High-capacity Matter Pod Hardened Medium Armor Plating Hardened Medium Armor Plating Hardened Medium Armor Plating Hacking Suite EX Chip 2 Advanced Component Analysis Suite System Purifier AS-neutralizer No. 17b AWS/EX-DEC Improved Grenade Launcher Deploy-a-Sentry [Rating: 43] Favorites ----------- Power Makeshift Power Source Engine Makeshift Power Source Power Core Nuclear Core Reactor Cold Fusion Reactor Propulsion Light Treads Treads Light Treads Leg Makeshift Leg Wheel Compact Wheel Hover Unit Aerolev Unit Utility High-capacity Storage Unit Device System Purifier Storage High-capacity Storage Unit Processor Improved Armor Integrity Analyzer Protection Hardened Medium Armor Plating Weapon Improved Assault Rifle Energy Gun Heavy Particle Gun Energy Cannon Heavy Ion Cannon Ballistic Gun Improved Assault Rifle Ballistic Cannon Flak Cannon Launcher Grenade Launcher Special Weapon Remote Datajack Slashing Weapon Longsword +1 Build | -11 -10 -10 -9 -9 -9 -8 -8 -8 -8 -7 ------- Run | Scr Mat Min Mat Min Exi Min Mat Gar Mat Fac Slots Evolved 6 | . . . 2 . . . 2 . . 2 Power . | . . . . . . . . . . . Propulsion 2 | . . . 1 . . . . . . 1 Utility 3 | . . . 1 . . . 1 . . 1 Weapon 1 | . . . . . . . 1 . . . Parts Attached 195 | 2 4 1 39 3 40 3 36 23 31 13 Power 13 | . . . 3 . 5 . 1 . 2 2 Engine 6 | . . . 3 . 2 . 1 . . . Core 6 | . . . . . 2 . . . 2 2 Reactor 1 | . . . . . 1 . . . . . Propulsion 39 | 2 1 . 6 . 10 . 9 1 9 1 Treads 30 | 1 1 . 6 . 4 . 7 1 9 1 Leg 7 | . . . . . 6 . 1 . . . Wheel 1 | 1 . . . . . . . . . . Hover 1 | . . . . . . . 1 . . . Flight . | . . . . . . . . . . . Utility 31 | . 3 . 3 . 11 1 6 2 3 2 Device 4 | . . . . . 3 1 . . . . Storage 5 | . 2 . . . 2 . . 1 . . Processor 3 | . . . . . . . 2 . . 1 Hackware . | . . . . . . . . . . . Protection 19 | . 1 . 3 . 6 . 4 1 3 1 Artifact . | . . . . . . . . . . . Weapon 112 | . . 1 27 3 14 2 20 20 17 8 Energy Gun 4 | . . . 1 . 1 . 2 . . . Energy Cannon 3 | . . . . . . . . . 3 . Ballistic Gun 62 | . . . 16 1 8 . 13 11 8 5 Ballistic Cannon 3 | . . . . . . . . . 2 1 Launcher 17 | . . 1 1 2 4 1 2 4 2 . Special Weapon 1 | . . . . . . . . . . 1 Impact Weapon . | . . . . . . . . . . . Slashing Weapon 22 | . . . 9 . 1 1 3 5 2 1 Piercing Weapon . | . . . . . . . . . . . Special Melee Weapon . | . . . . . . . . . . . Unidentified Prototypes 10 | . . . 2 . 6 . 2 . . . Parts Lost 32 | . . . 8 . 8 . 9 . 2 5 Power 5 | . . . 2 . . . 1 . 1 1 Propulsion 8 | . . . 4 . 3 . 1 . . . Utility 5 | . . . . . 3 . . . 1 1 Weapon 14 | . . . 2 . 2 . 7 . . 3 Highest Loss Streak 5 | . . . 2 . 5 . 2 . 1 2 Average Slot Usage (%) 98 | . 99 100 97 100 96 100 98 100 99 99 Engine 8 | . 14 14 10 11 10 11 9 9 1 . Core 1 | . . . . . . . . . 7 6 Treads 25 | . 26 28 30 33 22 . 24 27 27 30 Leg 3 | . . . . . 9 33 2 . . . Storage 20 | . 27 28 22 22 15 22 18 20 27 23 Processor 2 | . . . . . . . 9 6 . 7 Protection 9 | . . . 10 11 14 . 8 9 8 7 Ballistic Gun 18 | . 28 19 21 13 17 11 13 22 16 20 Launcher 1 | . . 8 . 8 3 8 . . . . Slashing Weapon 2 | . . . . . . 1 7 3 1 . Naked Turns . | . . . . . . . . . . . Heaviest Build 126 | 13 73 74 84 84 84 80 85 116 126 121 Greatest Support 80 | 16 40 40 63 63 63 53 62 62 64 80 Greatest Overweight (x) 4 | . 4 1 2 1 2 1 4 1 2 1 Average Overweight (x) . | . 1 1 1 1 . 1 1 1 1 1 Largest Inventory Capacity 28 | 6 20 20 20 20 20 20 20 28 28 28 Average Capacity 20 | 6 19 20 20 20 14 20 20 21 28 28 Most Carried 28 | 6 13 14 20 20 20 20 20 28 28 25 Average Carried 18 | 4 9 13 17 20 14 20 18 20 27 23 Final Capacity 28 | 6 20 20 20 20 20 20 20 28 28 28 Final Carried 28 | 4 13 14 20 20 20 20 20 28 26 23 Class Distribution -------------------- 55% | Hauler-Mutant 12% | Hauler-Gunner 9% | Mutant 9% | Scavenger-Mutant 8% | Hauler-Tank 4% | Scavenger-Gunner Dominant Class ---------------- Hauler-Mutant | -10/Materials Hauler-Mutant | -10/Mines Hauler-Mutant | -9/Materials Hauler-Mutant | -9/Mines Mutant | -9/Exiles Hauler-Mutant | -8/Mines Hauler-Mutant | -8/Materials Hauler-Mutant | -8/Garrison Hauler-Tank | -8/Materials Hauler-Gunner | -7/Factory Resources | -11 -10 -10 -9 -9 -9 -8 -8 -8 -8 -7 ----------- Run | Scr Mat Min Mat Min Exi Min Mat Gar Mat Fac Matter Collected 5794 | 232 193 30 882 29 465 228 1058 631 1443 603 Remotely . | . . . . . . . . . . . Salvage Created 7994 | 52 393 15 1222 29 341 204 2483 653 1906 696 Parts 487 | 2 27 4 85 4 51 18 117 44 103 32 Haulers Intercepted 15 | . 1 . 3 . . . 5 . 4 2 Recyclers Shooed 8 | . . . . . . 1 3 . 4 . Parts Field Recycled . | . . . . . . . . . . . Retrieved Matter . | . . . . . . . . . . . Parts Self-Destructed . | . . . . . . . . . . . Prevented . | . . . . . . . . . . . Kills | -11 -10 -10 -9 -9 -9 -8 -8 -8 -8 -7 ------- Run | Scr Mat Min Mat Min Exi Min Mat Gar Mat Fac Combat Hostiles Destroyed 171 | . 8 3 28 3 8 9 36 23 39 14 Melee 26 | . . . . . 1 . 19 1 4 1 Guns 83 | . 8 . 26 1 . . 13 12 14 9 Cannons 15 | . . . . . . . . . 11 4 AOE 47 | . . 3 2 2 7 9 4 10 10 . Classes Destroyed 18 | 1 5 . 5 . 3 1 . . 2 1 Worker 7 | . . . 1 . . . 3 . 2 1 Builder 10 | . . . 2 . . . 3 . 5 . Tunneler 3 | . . . . . . 1 . . 2 . Hauler 15 | . 1 . 3 . . . 5 . 4 2 Recycler 15 | 1 1 . 1 . . 1 5 . 4 2 Operator 4 | . 1 . 2 . . . . . 1 . Turret 1 | . . . . . 1 . . . . . Watcher 7 | . 1 . 2 . . . 2 . 2 . Swarmer 49 | . 3 3 10 3 . 6 4 10 6 4 Grunt 70 | . 5 . 11 . . 2 22 8 16 6 Brawler 4 | . . . 1 . . . 2 . 1 . Duelist 8 | . . . 1 . . 1 1 2 3 . Protector 1 | . . . . . . . . . 1 . Sentry 27 | . . . 5 . . . 7 3 11 1 Hunter 2 | . . . . . . . . . 1 1 Programmer 2 | . . . . . . . . . . 2 Zionite 8 | . . . . . 8 . . . . . Assembled 7 | . . . . . 7 . . . . . Best Kill Streak 14 | 1 3 3 4 3 7 4 6 4 14 6 Combat Bots Only 9 | . 3 3 4 3 7 4 4 4 9 3 Max Kills in Single Turn 4 | 1 1 2 2 2 3 3 4 4 3 1 Gunslinging . | . . . . . . . . . . . Exploded 4 | . . 2 2 2 2 3 2 4 2 . Melee 1 | . . . . . 1 . 1 1 1 1 Uniques/NPCs Destroyed 4 | . . . . . 4 . . . . . 8R-AWN (-9/Exiles) EX-HEX (-9/Exiles) EX-BIN (-9/Exiles) EX-DEC (-9/Exiles) Combat | -11 -10 -10 -9 -9 -9 -8 -8 -8 -8 -7 -------- Run | Scr Mat Min Mat Min Exi Min Mat Gar Mat Fac Damage Taken 8628 | . 279 . 1391 36 1615 112 1431 787 1816 1161 Core 662 | . 55 . 86 7 186 . 91 56 118 63 Absorbed by Shields . | . . . . . . . . . . . Core Remaining (%) 64 | 100 . 78 . . . 30 . . 51 . Volleys Fired 429 | 2 26 2 101 3 39 9 60 47 90 50 Largest 3 | 2 2 1 2 2 2 1 3 3 3 3 Hottest 142 | 40 40 30 46 46 46 30 80 63 142 90 Shots Fired 957 | 4 52 2 188 5 62 9 154 107 236 138 Gun 804 | 4 52 . 187 4 45 . 150 99 150 113 Cannon 98 | . . . . . . . . . 77 21 Launcher 51 | . . 2 1 1 17 9 4 8 9 . Special 4 | . . . . . . . . . . 4 Kinetic 889 | 4 52 . 187 4 45 . 144 99 220 134 Thermal 13 | . . . . . . . 6 . 7 . Explosive 51 | . . 2 1 1 17 9 4 8 9 . Electromagnetic . | . . . . . . . . . . . Robot Hit Streak 29 | 1 13 4 29 2 15 5 16 19 10 29 Robot Miss Streak 6 | 1 4 . 3 1 3 . 3 3 6 5 Penetration Max . | . . . . . . . . . . . Secondary Targets 7 | . . . 2 . . . 2 2 . 1 Max Gunslinging Chain 1 | . . . 1 . . . 1 1 . 1 Shots Hit Robots 756 | 2 34 1 141 2 56 3 170 70 167 110 Core Hits 454 | 2 17 3 54 3 43 21 80 40 141 50 Critical Hits 8 | . 1 . . . 1 . 4 1 1 . Critical Kills 4 | . 1 . . . . . 3 . . . Critical Parts Destroyed 4 | . . . . . 1 . 1 1 1 . Melee Attacks 141 | . . . 18 . 20 1 60 25 16 1 Impact . | . . . . . . . . . . . Slashing 141 | . . . 18 . 20 1 60 25 16 1 Piercing . | . . . . . . . . . . . Sneak Attacks 14 | . . . . . . . 12 . 2 . Combat Hostiles . | . . . . . . . . . . . Follow-up Attacks . | . . . . . . . . . . . Damage Inflicted 20652 | 25 444 143 2380 128 2353 747 5729 2052 5281 1370 Guns 7740 | 25 427 . 2054 15 501 . 1725 831 1187 975 Cannons 1677 | . . . . . . . . . 1339 338 Explosions 5195 | . . 143 126 85 969 701 346 990 1835 . Melee 5896 | . . . 152 . 883 46 3658 231 888 38 Ramming 144 | . 17 . 48 28 . . . . 32 19 Kinetic 9254 | 25 427 . 2054 15 501 . 1666 831 2422 1313 Thermal 163 | . . . . . . . 59 . 104 . Explosive 5195 | . . 143 126 85 969 701 346 990 1835 . Electromagnetic . | . . . . . . . . . . . Impact . | . . . . . . . . . . . Slashing 5896 | . . . 152 . 883 46 3658 231 888 38 Piercing . | . . . . . . . . . . . Highest Corruption 6 | . . . . . 6 . 1 1 3 3 Average Corruption 1 | . . . . . 5 . 1 1 1 1 Corruption Purged 6 | . . . . . 6 . . . . . Effects 49 | . . . . . 23 . 8 7 8 3 Message Errors 15 | . . . . . 5 . 3 3 4 . Matter Fused 4 | . . . . . 3 . . . . 1 Heat Flow Errors 3 | . . . . . 3 . . . . . Energy Discharges 7 | . . . . . 4 . 1 2 . . Data Loss (minor) 9 | . . . . . 3 . 2 1 1 2 Data Loss (major) 2 | . . . . . 2 . . . . . Misfires 2 | . . . . . 2 . . . . . Targeting Errors 7 | . . . . . 1 . 2 1 3 . Overload Shots . | . . . . . . . . . . . Overflow Damage 932 | . . . 10 . 1 12 621 49 239 . Projectiles 5 | . . . . . . . . . 5 . Explosions 158 | . . . 10 . 1 12 25 16 94 . Melee 769 | . . . . . . . 596 33 140 . Knockbacks 34 | . . . . . . . . . 27 7 Impact . | . . . . . . . . . . . Kinetic 32 | . . . . . . . . . 25 7 Secondary 2 | . . . . . . . . . 2 . Self-Inflicted Damage 235 | . . . 11 13 . 40 52 13 106 . Shots 8 | . . . 1 1 . 1 1 1 3 . Rammed 20 | . 2 . 7 3 . . . . 4 4 Targets Rammed 23 | . 2 . 9 3 . . . . 4 5 Kicked . | . . . . . . . . . . . Crushed 3 | . . . 2 . . . . . . 1 Highest Temperature 313 | . . . 13 . 195 3 163 147 313 214 Average Temperature 60 | . . . 4 . 45 3 61 40 81 60 Received Heat Transfer 2386 | . 90 . 474 . 40 9 594 279 585 315 Effects 8 | . . . . . . . . . 5 3 Energy Bleed 1 | . . . . . . . . . 1 . Interference 6 | . . . . . . . . . 3 3 Damage (minor) 1 | . . . . . . . . . 1 . Siege Activations . | . . . . . . . . . . . Robots Corrupted . | . . . . . . . . . . . Combat Hostiles . | . . . . . . . . . . . Parts Fried . | . . . . . . . . . . . Impact Corruptions . | . . . . . . . . . . . Robots Melted . | . . . . . . . . . . . Combat Hostiles . | . . . . . . . . . . . Parts Melted . | . . . . . . . . . . . Heat Transferred 259 | . . . . . . . 111 . 148 . Parts Sabotaged . | . . . . . . . . . . . Parts Stolen . | . . . . . . . . . . . Parts Stripped . | . . . . . . . . . . . Power Chain Reactions . | . . . . . . . . . . . Missiles Intercepted . | . . . . . . . . . . . Alert | -11 -10 -10 -9 -9 -9 -8 -8 -8 -8 -7 ------- Run | Scr Mat Min Mat Min Exi Min Mat Gar Mat Fac Peak Influence 1388 | 5 188 103 353 70 . 262 474 1388 1295 773 Initial 676 | . 3 33 . 22 . . 28 277 676 588 Average 414 | 1 68 21 93 24 . 90 195 956 905 671 Maximum Alert Level 4 | . . . 1 . . 1 2 4 4 3 Low Security (%) 48 | 100 100 100 89 100 . 84 52 . . . Level 1 11 | . . . 10 . . 15 33 10 . . Level 2 9 | . . . . . . . 13 6 6 70 Level 3 20 | . . . . . . . . 42 79 29 Level 4 9 | . . . . . . . . 39 14 . Level 5 . | . . . . . . . . . . . High Security . | . . . . . . . . . . . Max Security . | . . . . . . . . . . . Squads Dispatched 27 | . 5 . 2 . . . 8 . 8 4 Investigation 7 | . 2 . . . . . 3 . 1 1 Extermination 2 | . . . . . . . . . . 2 Reinforcement 9 | . 3 . 2 . . . 1 . 2 1 Assault 2 | . . . . . . . . . 2 . Garrison 7 | . . . . . . . 4 . 3 . Intercept . | . . . . . . . . . . . Construction Impeded 1 | . . . . . . . . . . 1 Haulers Reinforced . | . . . . . . . . . . . Stealth | -11 -10 -10 -9 -9 -9 -8 -8 -8 -8 -7 --------- Run | Scr Mat Min Mat Min Exi Min Mat Gar Mat Fac Distress Signals 13 | . . . 5 . . . 2 . 6 . Communications Jammed . | . . . . . . . . . . . Distress Signals . | . . . . . . . . . . . Times Spotted 273 | . 18 2 52 3 27 9 51 23 69 19 Peak Tracking Total 9 | . 4 2 6 3 9 4 4 4 9 5 Tactical Retreats 23 | . . . 3 . 3 1 6 2 6 2 Traps | -11 -10 -10 -9 -9 -9 -8 -8 -8 -8 -7 ------- Run | Scr Mat Min Mat Min Exi Min Mat Gar Mat Fac Traps Triggered 18 | . 1 . 1 . . . 2 10 2 2 Indirectly . | . . . . . . . . . . . Trap Hack Attempts . | . . . . . . . . . . . Triggered . | . . . . . . . . . . . Disarmed . | . . . . . . . . . . . Reprogrammed . | . . . . . . . . . . . Reused . | . . . . . . . . . . . Traps Extracted . | . . . . . . . . . . . Installed . | . . . . . . . . . . . Triggered . | . . . . . . . . . . . Machines | -11 -10 -10 -9 -9 -9 -8 -8 -8 -8 -7 ---------- Run | Scr Mat Min Mat Min Exi Min Mat Gar Mat Fac Machines Disabled 16 | . . . 1 . 8 . 1 4 2 . Max in Single Turn 3 | . . . 1 . 3 . 1 1 2 . Garrison Relay 4 | . . . . . . . . 4 . . Machines Sabotaged . | . . . . . . . . . . . Garrisons Compromised . | . . . . . . . . . . . Overloaded Fab Kills . | . . . . . . . . . . . Fab Network Shutdowns . | . . . . . . . . . . . Hacking | -11 -10 -10 -9 -9 -9 -8 -8 -8 -8 -7 --------- Run | Scr Mat Min Mat Min Exi Min Mat Gar Mat Fac Machines Accessed 32 | . 3 . 10 . 2 . 9 . 5 3 Terminals 20 | . 2 . 9 . . . 4 . 3 2 Fabricators . | . . . . . . . . . . . Repair Stations 1 | . . . 1 . . . . . . . Recycling Units 6 | . 1 . . . . . 2 . 2 1 Scanalyzers 2 | . . . . . . . 2 . . . Garrison Access 1 | . . . . . . . 1 . . . Total Hacks 86 | . 13 . 25 . 2 . 27 . 12 7 Successful 42 | . 9 . 9 . 2 . 14 . 5 3 Failed 43 | . 3 . 16 . . . 13 . 7 4 Catastrophic 9 | . 1 . 4 . . . 2 . 1 1 Database Lockouts 1 | . 1 . . . . . . . . . Manual 53 | . 10 . 21 . 1 . 13 . 5 3 Terminals 61 | . 12 . 23 . . . 14 . 7 5 Fabricators . | . . . . . . . . . . . Repair Stations 2 | . . . 2 . . . . . . . Recycling Units 12 | . 1 . . . . . 4 . 5 2 Scanalyzers 8 | . . . . . . . 8 . . . Garrison Access 1 | . . . . . . . 1 . . . Terminal Hacks 17 | . 4 . 5 . 2 . 3 . 2 1 Record 1 | . . . . . 1 . . . . . Robot Analysis 2 | . 2 . . . . . . . . . Level Access Points 1 | . . . 1 . . . . . . . Branch Access Points 3 | . 1 . 1 . . . 1 . . . Unreport Threat 6 | . . . 2 . . . 2 . 2 . Locate Traps 2 | . . . 1 . . . . . . 1 Hauler Manifests 1 | . 1 . . . . . . . . . EX-Prototype ID Bank 1 | . . . . . 1 . . . . . Fabricator Hacks . | . . . . . . . . . . . Repair Station Hacks 2 | . . . 2 . . . . . . . Scan Component 1 | . . . 1 . . . . . . . Repair 1 | . . . 1 . . . . . . . Recycling Unit Hacks 7 | . 1 . . . . . 3 . 2 1 Retrieve Components 7 | . 1 . . . . . 3 . 2 1 Scanalyzer 6 | . . . . . . . 6 . . . Insert Component 3 | . . . . . . . 3 . . . Analyze 3 | . . . . . . . 3 . . . Garrison Access Hacks 1 | . . . . . . . 1 . . . Unlock Access 1 | . . . . . . . 1 . . . Unauthorized Hacks 9 | . 4 . 2 . . . 1 . 1 1 Terminals 9 | . 4 . 2 . . . 1 . 1 1 Track 1 | . 1 . . . . . . . . . Assimilate 1 | . 1 . . . . . . . . . Botnet 6 | . 1 . 2 . . . 1 . 1 1 Operators 1 | . 1 . . . . . . . . . Fabricators . | . . . . . . . . . . . Repair Stations . | . . . . . . . . . . . Recycling Units . | . . . . . . . . . . . Scanalyzers . | . . . . . . . . . . . Garrison Access . | . . . . . . . . . . . Data Cores Recovered . | . . . . . . . . . . . Used . | . . . . . . . . . . . Hacking Detections 27 | . 2 . 10 . . . 7 . 5 3 Full Trace Events 4 | . 1 . 1 . . . 1 . . 1 Feedback Events 1 | . . . . . . . 1 . . . Corruption 1 | . . . . . . . 1 . . . Feedback Blocked . | . . . . . . . . . . . Robot Schematics Acquired . | . . . . . . . . . . . Robots Built . | . . . . . . . . . . . Matter . | . . . . . . . . . . . Time . | . . . . . . . . . . . Total Robot Build Rating . | . . . . . . . . . . . Part Schematics Acquired 1 | . . . . . . . 1 . . . Parts Built . | . . . . . . . . . . . Matter . | . . . . . . . . . . . Time . | . . . . . . . . . . . Total Part Build Rating . | . . . . . . . . . . . Parts Repaired 1 | . . . 1 . . . . . . . Time 38 | . . . 38 . . . . . . . Parts Recycled . | . . . . . . . . . . . Recycled Matter . | . . . . . . . . . . . Retrieved Matter . | . . . . . . . . . . . Retrieved Components 54 | . 9 . . . . . 21 . 14 10 Parts Scanalyzed 2 | . . . . . . . 2 . . . Part Schematics Acquired 1 | . . . . . . . 1 . . . Parts Damaged . | . . . . . . . . . . . Bothacking | -11 -10 -10 -9 -9 -9 -8 -8 -8 -8 -7 ------------ Run | Scr Mat Min Mat Min Exi Min Mat Gar Mat Fac Used RIF Installer 1 | . . . . . . . . 1 . . Robots Hacked 3 | . . . . . . . . . . 3 Non-combat 3 | . . . . . . . . . . 3 Combat . | . . . . . . . . . . . Robot Hacks Applied 4 | . . . . . . . . . . 4 parse_system 2 | . . . . . . . . . . 2 find_chute 1 | . . . . . . . . . . 1 ignore_parts 1 | . . . . . . . . . . 1 Relay Couplers Released 14 | . . . . . . . . 14 . . Machine Destruction 14 | . . . . . . . . 14 . . Robots Rewired . | . . . . . . . . . . . Allies Hacked . | . . . . . . . . . . . Hacks Repelled . | . . . . . . . . . . . Allies | -11 -10 -10 -9 -9 -9 -8 -8 -8 -8 -7 -------- Run | Scr Mat Min Mat Min Exi Min Mat Gar Mat Fac Total Allies . | . . . . . . . . . . . Largest Group . | . . . . . . . . . . . Highest-Rated Group . | . . . . . . . . . . . Highest-Rated Ally . | . . . . . . . . . . . Total Orders . | . . . . . . . . . . . Ally Attacks . | . . . . . . . . . . . Total Damage . | . . . . . . . . . . . Kills . | . . . . . . . . . . . Allies Corrupted . | . . . . . . . . . . . Allies Melted . | . . . . . . . . . . . Intel | -11 -10 -10 -9 -9 -9 -8 -8 -8 -8 -7 ------- Run | Scr Mat Min Mat Min Exi Min Mat Gar Mat Fac Robot Analysis Total 2 | . 2 . . . . . . . . . Derelict Logs Recovered 1 | . . 1 . . . . . . . . Drone Launches . | . . . . . . . . . . . Drone Recoveries . | . . . . . . . . . . . Exploration | -11 -10 -10 -9 -9 -9 -8 -8 -8 -8 -7 ------------- Run | Scr Mat Min Mat Min Exi Min Mat Gar Mat Fac Turns Passed 14891 | 18 725 842 2340 578 2706 512 2402 2292 1599 877 Spaces Moved 7084 | 10 367 465 994 312 1469 300 1090 1117 637 323 Core . | . . . . . . . . . . . Treads 6158 | . 291 465 994 312 992 . 1027 1117 637 323 Legs 840 | . . . . . 477 300 63 . . . Wheels 86 | 10 76 . . . . . . . . . Hover . | . . . . . . . . . . . Flight . | . . . . . . . . . . . Fastest Speed 100 | 100 100 180 180 180 156 163 156 178 170 190 Average Speed 175 | 100 166 180 181 180 165 163 178 178 180 190 Slowest Speed 250 | 100 180 180 200 180 200 163 250 178 210 190 Overloaded Moves . | . . . . . . . . . . . Propulsion Burnouts . | . . . . . . . . . . . Robots Hopped . | . . . . . . . . . . . Cave-ins Triggered . | . . . . . . . . . . . Exploration Rate (%) 61 | 2 57 97 72 71 91 88 63 81 51 7 Regions Visited 10 Branch Regions 4 Pre-discovered Areas 1 | . . . . . 1 . . . . . Known Exits Taken 4 | . 1 . 1 . . 1 1 . . . Unknown Exits Taken 5 | 1 . 1 . 1 1 . . . 1 . Scrap Searched 1 | . . 1 . . . . . . . . Spaces Dug 31 | . . . 13 11 . . 2 5 . . Terrain Destroyed 223 | . . 17 14 11 18 34 20 37 72 . Melee 20 | . . . 13 . . . 2 5 . . Projectile 3 | . . . . . . . . . 3 . AOE 200 | . . 17 1 11 18 34 18 32 69 . Terrain Rammed . | . . . . . . . . . . . Walls Destroyed . | . . . . . . . . . . . Machines Disabled . | . . . . . . . . . . . Actions | -11 -10 -10 -9 -9 -9 -8 -8 -8 -8 -7 --------- Run | Scr Mat Min Mat Min Exi Min Mat Gar Mat Fac Total 8559 | 15 427 468 1310 320 1669 312 1362 1307 891 478 Wait 439 | . 16 . 102 . 37 . 70 58 74 82 Move 7075 | 9 366 464 993 311 1468 299 1090 1116 636 323 Hop . | . . . . . . . . . . . Pick Up 112 | . 10 1 27 . 29 . 20 12 10 3 Fast Attach 35 | . 1 . 8 . 9 . 8 1 7 1 Attach 51 | 2 1 . 13 . 10 . 15 2 2 6 Detach 20 | . 1 . 5 . 6 . 7 1 . . Swap 109 | . 2 1 18 3 21 3 13 20 22 6 Drop 105 | 2 2 . 16 . 30 . 19 5 30 1 Fire 429 | 2 26 2 101 3 39 9 60 47 90 50 Melee 141 | . . . 18 . 20 1 60 25 16 1 Ram . | . . . . . . . . . . . Kick . | . . . . . . . . . . . Crush 23 | . 2 . 9 3 . . . . 4 5 Escape Stasis 20 | . . . . . . . . 20 . . Rewire . | . . . . . . . . . . . Trap . | . . . . . . . . . . . Miscellaneous . | . . . . . . . . . . . Route ------- -11/Scrapyard -10/Materials (discovered 3 exits: *Mat / *Min x2) -10/Mines (discovered 2 exits: *Mat x2) -9/Materials (discovered 5 exits: *Mat x3 / *Min x2) -9/Mines (discovered 2 exits: *Mat / *Exi) -9/Exiles (discovered 2 exits: [*Min x2]) -8/Mines -8/Materials (discovered 3 exits: *Fac x2 / Gar) -8/Garrison (discovered 3 exits: *Mat x3) -8/Materials -7/Factory History --------- Turn | Location | Event 4 | -11/Scrapyard | Discovered new exit (range 2) 19 | -11/Scrapyard | Entered Materials 36 | -10/Materials | Identified exit to Mines 36 | -10/Materials | Central database locked down 367 | -10/Materials | Build established: Hauler-Mutant 634 | -10/Materials | Discovered new exit (range 11) 744 | -10/Materials | Entered Mines 788 | -10/Mines | Discovered new exit (range 15) 896 | -10/Mines | Discovered new exit (range 6) 1038 | -10/Mines | Received a Rocket Launcher from a helpful Derelict 1158 | -10/Mines | Learned Materials interactive machine intel 1586 | -10/Mines | Entered Materials 1586 | -9/Materials | Evolved 2 slots: Propulsion x1, Utility x1 1587 | -9/Materials | Loaded intel: 18 interactive machine locations 1852 | -9/Materials | Discovered new exit (range 12) 2028 | -9/Materials | Discovered new exit (range 4) 2715 | -9/Materials | Discovered new exit (range 16) 3298 | -9/Materials | Repaired Katana 3331 | -9/Materials | Identified exit to Materials 3471 | -9/Materials | Identified exit to Mines 3926 | -9/Materials | Entered Mines 4470 | -9/Mines | Discovered exit to Materials (range 3) 4495 | -9/Mines | Deemed a non-threat by the Exiles lab entrance 4497 | -9/Mines | Discovered new exit (range 5) 4504 | -9/Mines | Entered Exiles 4548 | -9/Exiles | Met 8R-AWN 4580 | -9/Exiles | Met EX-HEX 4634 | -9/Exiles | Met EX-BIN 4657 | -9/Exiles | Aligned with FarCom system 4659 | -9/Exiles | Given EX-Vault access code 4702 | -9/Exiles | Opened EX-Vault 4715 | -9/Exiles | Found Longsword +1 4757 | -9/Exiles | Warned to stay clear of 0b10 Research branches 4978 | -9/Exiles | Met EX-DEC 5055 | -9/Exiles | Discovered new exit (range 10) 5356 | -9/Exiles | Build established: Mutant 5607 | -9/Exiles | Attacked by the Exiles 5664 | -9/Exiles | Destroyed 7 combat bots 5742 | -9/Exiles | Core integrity fell below 50% 5759 | -9/Exiles | Destroyed 8R-AWN 5769 | -9/Exiles | Found Prototype Device 5771 | -9/Exiles | Identified AS-neutralizer No. 17b 6127 | -9/Exiles | Destroyed EX-HEX 6170 | -9/Exiles | Destroyed EX-BIN 6251 | -9/Exiles | Destroyed EX-DEC 6269 | -9/Exiles | Found Prototype Energy Gun 6269 | -9/Exiles | Identified AWS/EX-DEC 6273 | -9/Exiles | Lost 5 parts (2n2u1w) 6276 | -9/Exiles | Found Deploy-a-Sentry 6604 | -9/Exiles | Discovered new exit (range 15) 6727 | -9/Exiles | Build established: Scavenger-Mutant 6730 | -9/Exiles | Learned location of Zion (-7) 6942 | -9/Exiles | Found Prototype Device 6943 | -9/Exiles | Identified System Purifier 7210 | -9/Exiles | Stole two prototypes: Longsword +1, Deploy-a-Sentry 7210 | -9/Exiles | Entered Mines 7703 | -8/Mines | Discovered exit to Materials (range 13) 7705 | -8/Mines | Build established: Hauler-Mutant 7722 | -8/Mines | Entered Materials 7722 | -8/Materials | Evolved 2 slots: Utility x1, Weapon x1 7775 | -8/Materials | Garrison activated, responded to threat 8530 | -8/Materials | Build established: Scavenger-Mutant 8660 | -8/Materials | Garrison activated, responded to threat 9027 | -8/Materials | Build established: Hauler-Mutant 9279 | -8/Materials | Discovered new exit (range 5) 9796 | -8/Materials | Discovered new exit (range 15) 10124 | -8/Materials | Identified exit to Garrison 10124 | -8/Materials | Entered Garrison 10166 | -8/Garrison | Triggered checkpoint 10358 | -8/Garrison | Triggered checkpoint 10468 | -8/Garrison | Triggered checkpoint 10586 | -8/Garrison | Discovered new exit (range 8) 10646 | -8/Garrison | Triggered checkpoint 10843 | -8/Garrison | Triggered checkpoint 10935 | -8/Garrison | Triggered checkpoint 11068 | -8/Garrison | Triggered checkpoint 11162 | -8/Garrison | Discovered new exit (range 12) 11204 | -8/Garrison | Build established: Hauler-Gunner 11301 | -8/Garrison | Discovered new exit (range 15) 11361 | -8/Garrison | Triggered checkpoint 11817 | -8/Garrison | Installed Relay Interface Framework 11867 | -8/Garrison | Garrison Relay disabled 12046 | -8/Garrison | Build established: Hauler-Mutant 12050 | -8/Garrison | Garrison Relay disabled 12216 | -8/Garrison | Garrison Relay disabled 12350 | -8/Garrison | Garrison Relay disabled 12416 | -8/Garrison | Entered Materials 12704 | -8/Materials | Build established: Hauler-Tank 12816 | -8/Materials | First assault squad dispatched 12939 | -8/Materials | Destroyed 9 combat bots 13662 | -8/Materials | Discovered new exit (range 15) 13730 | -8/Materials | Garrison activated, responded to threat 13815 | -8/Materials | Destroyed 7 combat bots 14015 | -8/Materials | Entered Factory 14015 | -7/Factory | Evolved 2 slots: Propulsion x1, Utility x1 14306 | -7/Factory | Build established: Hauler-Gunner 14892 | -7/Factory | Self-destructed Last Messages --------------- 14875_ K-01 Serf collects debris. 14876_ System corrupted: Matter fused (-10). 14878_ Acquired Remote Datajack. 14879_ Acquired 4 matter. 14879_ K-01 Serf collects debris. 14883_ R-06 Scavenger collects Gravmag System. 14884_ Jacked R-06 Scavenger... >>parse_system Reading system data... 14886_ Jacked R-06 Scavenger... >>ignore_parts Collection routines blocked. 14886_ K-01 Serf collects debris. 14887_ Jacked K-01 Serf... >>find_chute Pinpointed chute assignment: (106,47). 14891_ K-01 Serf collects debris. 14891_ Jacked U-05 Engineer... >>parse_system Reading system data... Map ----- +----------------------------------------------------+ | ????????????????????????########### | | ????????????????????????# + """""""" | | ????????????????????????# """ """ # | | ????????????????????????# """ """ # | | ????????????????????????# """ """ # = % | | ????????????????????????# # #########^ | | ????????????????????????# """ """ # #???????# | | ????????????????????????# """S""" # #???????# | | ????????????????????????# # #???????# | | ????????????????????????########### #???????# | | ??????????????????????????????????# #???????# | | ??????????????????????????????????# #???????#^ | | ??????????????????????????????????# ########## | | ??????????????? ??????????????????# # ] ! | | ?????????????? ???#????????????# # | | ??????????????? ??# ???????????# + | | ??????????????? ??# ???????????# # | | ???????????????"" ?# ??????????# # "" " | | ???????????????"" ?# ??????????# # "" " | | ???????????????"" ? ?????????# # """ " | | ??????????????""" ###+########## # """ " | | ??????????????""" u # """ " | | ??????????"" """" % # | | ????????? k % + | | ????????? ! # ! | | ????????? ! r @ ########## | | ????????? ###k################????????? | | ????????? ??????#^ #?????????????????? | | ?????????????????????# ^ #?????????????????? | | ?????????????????????# """"""" #?????????????????? | | ?????????????????????# """"""" #?????????????????? | | ?????????????????????# """"""" #?????????????????? | | ?????????????????????# """"""" #?????????????????? | | ?????????????????????+^ ????????????????????? | | ?????????????????????# = ?????????????????????? | | ?????????????????????#######?????????????????????? | | ?????????????????????????????????????????????????? | | ?????????????????????????????????????????????????? | | ?????????????????????????????????????????????????? | | ?????????????????????????????????????????????????? | | ?????????????????????????????????????????????????? | | ?????????????????????????????????????????????????? | | ?????????????????????????????????????????????????? | | ?????????????????????????????????????????????????? | | ?????????????????????????????????????????????????? | | ?????????????????????????????????????????????????? | | ?????????????????????????????????????????????????? | | ?????????????????????????????????????????????????? | | ?????????????????????????????????????????????????? | | ?????????????????????????????????????????????????? | +----------------------------------------------------+ Best States ------------- Heat Dissipation 34 Energy Generation 19 Energy Capacity 265 Matter Stores 324 Matter Capacity 500 Sight Range 16 Terrain Scan Density 10 Armor Coverage 375 Core Shielding 20 Evasion (%) 40 Targeting Accuracy 8 Armor Integrity Analysis 50 Recoil Reduction 4 Item Schematics ----------------- Hcp. Storage Unit | -8/Materials | Scanalyzed Robot Schematics ------------------ None Fabricated ------------ Nothing Alien Tech Used ----------------- None Achievements -------------- None Challenges ------------ None Game ------ Seed BurstGravitonGreatsword Manual? 0 Play Time 01:57:10 Cumulative 42.6 hours Start 2020.11.02 @ 18:14:49 End 2020.11.02 @ 21:03:28 Sessions 1 Manual Loads 0 Difficulty Rogue Special Mode Halloween2020/ForbiddenLore Game No. 27 Rogue 27 Adventurer 0 Explorer 0 Win Type - Total 0 Types 0/0/0/0/0/0/0/0/0 Lore% 21 Gallery% 27 Achievement% 22 Wizard Run 0 Options --------- ASCII 1 Keyboard 1 Movement Vi Keybinds 0 Fullscreen 1 Font 16/Terminus Map View 75x55 Tactical HUD 1 Map Filters NONE Filters NONE Steam 1 RUN: deb3de3a-77ba-438d-be93-87ea4b9af150